bitfinex-derivatives/quotes_SOLF0:USTF0_20241224
["timestamp","ask_amount","ask_price","bid_price","bid_amount"]
[1735056095816,2.5306,197.77,197.71,2.5312]
[1735056096006,6.8618,197.82,197.66,19.68392917]
[1735056096410,2.5306,197.77,197.71,2.5313]
[1735056096916,2.5308,197.76,197.71,2.5313]
[1735056097610,3.78,197.77,197.7,19.68392917]
[1735056098013,3.78,197.79,197.71,1.5059]
[1735056098214,1.83972025,197.84,197.71,4.6412]
[1735056098415,3.78,197.83,197.74,19.68392917]
[1735056099219,2.5299,197.83,197.78,2.5304]
[1735056099414,1.5424,197.89,197.78,19.68392917]
[1735056099619,19.68392917,197.94,197.78,19.68392917]
[1735056099817,3.78,197.93,197.78,19.68392917]
[1735056100420,2.5294,197.87,197.81,2.53]
[1735056100821,6.3094,197.87,197.81,2.53]
[1735056101422,3.78,197.87,197.78,19.68392917]
[1735056101618,2.5296,197.85,197.79,2.5302]
[1735056103617,3.78,197.87,197.71,4.6412]
[1735056104126,1.6385,197.86,197.71,4.6412]
[1735056104519,1.6385,197.86,197.71,1.5059]
[1735056104719,1.5474,197.85,197.71,1.5059]
[1735056105120,3.78,197.84,197.74,19.68392917]
[1735056106420,2.5299,197.82,197.76,2.5306]
[1735056106622,3.78,197.81,197.76,2.5306]
[1735056108028,6.3101,197.81,197.76,2.5306]
[1735056109426,1.6385,197.86,197.74,19.68392917]
[1735056109627,3.78,197.85,197.74,19.68392917]
[1735056109822,3.78,197.85,197.78,19.68392917]
[1735056110029,3.78,197.85,197.79,1.5722]
[1735056110227,2.5289,197.91,197.8,2.5301]
[1735056110428,3.78,197.9,197.8,2.5301]
[1735056110825,19.68392917,197.95,197.79,1.5722]
[1735056111025,3.78,197.94,197.79,4.6931]
[1735056111531,2.5288,197.91,197.85,2.5295]
[1735056111927,3.78,197.93,197.85,2.5295]
[1735056112129,3.78,197.93,197.77,19.68392917]
[1735056112327,3.78,197.93,197.78,1.5722]
[1735056112527,5.0531,198.09,197.85,19.68392917]
[1735056112730,22.85502917,198.06,197.89,19.68392917]
[1735056112930,3.78,198.05,197.91,2.5287]
[1735056113335,22.85502917,198.06,197.91,2.5287]
[1735056113536,3.78,198.05,197.91,2.5287]
[1735056114334,22.85502917,198.06,197.91,2.5287]
[1735056114536,2.5281,197.97,197.91,2.5287]
[1735056115134,2.5281,197.97,197.92,2.5286]
[1735056115527,3.78,197.99,197.89,19.68392917]
[1735056115733,3.78,197.99,197.87,1.6411]
[1735056117440,2.5286,197.93,197.87,4.1703]
[1735056118539,2.5286,197.93,197.88,2.5291]
[1735056118743,24.69272882,198.06,197.92,19.68392917]
[1735056118932,3.78,198.05,197.92,19.68392917]
[1735056119338,2.5278,197.99,197.93,2.5284]
[1735056119635,2.5278,197.99,197.92,19.68392917]
[1735056120236,3.78,198.05,197.93,2.5285]
[1735056120836,24.69272882,198.06,197.92,19.68392917]
[1735056120837,5.00879965,198.06,197.92,19.68392917]
[1735056121149,3.78,198.05,197.92,19.68392917]
[1735056121331,2.5279,197.98,197.93,2.5284]
[1735056121535,3.78,198.05,197.92,19.68392917]
[1735056123041,2.5278,197.99,197.92,19.68392917]
[1735056123241,3.78,198.05,197.92,19.68392917]
[1735056125548,1.83769965,198.06,197.96,19.68392917]
[1735056126646,2.5271,198.04,197.99,2.5277]
[1735056128050,1.83769965,198.06,197.97,3.0787]
[1735056128254,2.5276,198.01,197.97,3.0787]
[1735056129651,2.5279,197.99,197.96,19.68392917]
[1735056129847,2.5279,197.99,197.92,19.68392917]
[1735056130845,2.5279,197.99,197.95,2.5282]
[1735056131052,3.78,198.01,197.92,19.68392917]
[1735056131248,3.78,198.01,197.96,19.68392917]
[1735056131554,3.78,198.01,197.98,2.5278]
[1735056132552,5.61769965,198.06,197.96,19.68392917]
[1735056132952,2.5268,198.07,198.0,19.68392917]
[1735056133252,3.78,198.1,198.0,19.68392917]
[1735056133452,2.5269,198.06,197.96,19.68392917]
[1735056133644,3.78,198.1,197.97,2.5279]
[1735056134245,3.78,198.1,197.98,2.5279]
[1735056134657,2.5273,198.03,197.98,2.5279]
[1735056135256,3.78,198.04,197.96,19.68392917]
[1735056135257,2.5276,198.0,197.96,19.68392917]
[1735056135860,3.78,198.04,197.96,19.68392917]
[1735056136556,3.036,198.12,197.96,19.68392917]
[1735056136764,3.78,198.11,198.0,19.68392917]
[1735056137060,2.5267,198.07,198.0,19.68392917]
[1735056138560,2.5267,198.07,198.02,2.5273]
[1735056139357,2.5265,198.09,198.0,19.68392917]
[1735056139560,2.5265,198.09,198.01,1.6367]
[1735056139759,2.5264,198.1,198.04,22.21092917]
[1735056139953,3.78,198.13,198.04,19.68392917]
[1735056141567,1.6509,198.16,198.04,19.68392917]
[1735056141766,3.78,198.15,198.04,19.68392917]
[1735056142168,2.5264,198.1,198.04,19.68392917]
[1735056142467,3.78,198.2,198.08,19.68392917]
[1735056142781,15.1422,198.31,198.08,19.68392917]
[1735056142782,3.78,198.19,198.08,19.68392917]
[1735056143285,2.5256,198.16,198.08,19.68392917]
[1735056143465,3.78,198.19,198.08,19.68392917]
[1735056143766,2.5258,198.15,198.1,2.5263]
[1735056144972,2.526,198.13,198.08,22.21042917]
[1735056145162,3.78,198.12,198.04,19.68392917]
[1735056146168,3.78,198.12,198.06,14.76844192]
[1735056146169,2.5262,198.11,198.06,14.76844192]
[1735056146565,3.78,198.12,197.96,54.08374306]
[1735056146772,2.5271,198.04,197.99,12.24174192]
[1735056147167,3.78,198.06,197.99,12.24174192]
[1735056147671,3.78,198.06,198.02,12.24174192]
[1735056147963,2.5267,198.08,198.02,12.24174192]
[1735056148167,2.5267,198.08,197.99,19.59531566]
[1735056148568,2.5267,198.08,198.03,2.5272]
[1735056152372,2.5264,198.1,198.05,2.5269]
[1735056152671,3.78,198.11,198.03,19.59531566]
[1735056152867,3.78,198.11,198.04,1.6151]
[1735056153066,2.5255,198.17,198.08,2.5265]
[1735056153261,4.7306,198.23,198.07,19.59531566]
[1735056153262,3.78,198.16,198.07,19.59531566]
[1735056154966,2.5259,198.14,198.07,22.12191566]
[1735056155270,3.78,198.16,198.07,19.59531566]
[1735056155667,2.526,198.13,198.07,22.12191566]
[1735056156270,2.526,198.13,198.07,19.59531566]
[1735056156473,3.78,198.17,198.07,19.59531566]
[1735056156675,3.78,198.17,198.04,4.7503]
[1735056156974,3.78,198.17,198.04,24.34561566]
[1735056157677,2.5261,198.12,198.07,2.5267]
[1735056158469,3.78,198.17,198.04,24.34561566]
[1735056159773,3.78,198.17,198.04,4.7503]
[1735056160371,23.37531566,198.17,198.04,1.5513]
[1735056160575,23.37531566,198.17,198.0,73.67905872]
[1735056160774,23.37531566,198.17,198.0,19.59531566]
[1735056161486,2.5265,198.09,198.04,2.5271]
[1735056163478,2.5265,198.09,198.05,2.5269]
[1735056164177,3.78,198.1,198.0,19.59531566]
[1735056164775,6.3064,198.1,198.05,2.527]
[1735056165376,6.3064,198.1,198.06,2.5268]
[1735056165581,3.78,198.1,198.06,2.5268]
[1735056165782,3.78,198.1,198.0,19.59531566]
[1735056166380,3.78,198.15,198.0,19.59531566]
[1735056166578,3.78,198.16,198.07,19.59531566]
[1735056166880,4.7306,198.23,198.07,19.59531566]
[1735056167179,3.78,198.22,198.08,4.651]
[1735056167576,2.5254,198.18,198.13,2.5259]
[1735056167873,4.7306,198.23,198.11,19.59531566]
[1735056168075,3.78,198.22,198.11,19.59531566]
[1735056168271,2.5249,198.21,198.11,19.59531566]
[1735056168475,3.78,198.22,198.11,19.59531566]
[1735056168781,2.5251,198.2,198.14,2.5257]
[1735056169177,2.5251,198.2,198.15,2.5256]
[1735056169574,3.78,198.22,198.15,2.5256]
[1735056169778,3.78,198.22,198.13,2.5258]
[1735056170183,2.5253,198.18,198.13,14.75926985]
[1735056173291,3.78,198.22,198.13,12.23346985]
[1735056173983,2.5251,198.2,198.13,12.23346985]
[1735056174184,3.78,198.22,198.13,12.23346985]
[1735056175182,2.5254,198.18,198.13,14.75936985]
[1735056177185,2.5254,198.18,198.14,2.5258]
[1735056177783,2.5254,198.18,198.13,12.23346985]
[1735056177992,2.5256,198.16,198.08,8.431]
[1735056178189,3.78,198.22,198.1,12.23346985]
[1735056179092,2.5257,198.16,198.11,2.5262]
[1735056179288,3.78,198.22,198.1,12.23346985]
[1735056180087,4.7285,198.21,198.08,4.651]
[1735056180488,12.23346985,198.2,198.07,12.23346985]
[1735056181389,2.5264,198.1,198.07,12.23346985]
[1735056182789,3.76,198.13,198.07,12.23346985]
[1735056182994,2.5262,198.11,198.07,12.23346985]
[1735056183391,3.76,198.13,198.02,4.8378]
[1735056183392,3.76,198.13,198.02,5.7412]
[1735056183585,3.76,198.13,198.02,2.5272]
[1735056183790,4.5737,198.12,198.0,12.23346985]
[1735056184795,2.5271,198.05,198.0,14.76096985]
[1735056184991,2.5271,198.05,198.0,12.23346985]
[1735056186793,3.76,198.06,198.0,12.23346985]
[1735056186991,3.76,198.06,197.97,17.01786985]
[1735056187194,3.76,198.06,197.97,15.39896985]
[1735056188397,2.5276,198.01,197.97,15.39896985]
[1735056189294,3.76,198.06,197.97,15.39896985]
[1735056189494,3.76,198.06,197.97,17.92686985]
[1735056189995,2.5274,198.02,197.97,17.92686985]
[1735056190198,3.76,198.06,197.97,12.23346985]
[1735056190696,2.5276,198.0,197.97,12.23346985]
[1735056191891,2.5275,198.02,197.97,12.23346985]
[1735056192098,16.80716985,198.12,197.97,12.23346985]
[1735056192296,3.76,198.11,197.97,12.23346985]
[1735056192497,2.5272,198.04,197.98,2.5278]
[1735056192699,3.76,198.04,197.98,2.5278]
[1735056192899,3.76,198.04,197.97,12.23346985]
[1735056193102,2.5276,198.0,197.97,12.23346985]
[1735056194401,3.76,198.02,197.97,12.23346985]
[1735056194600,6.2873,198.03,197.98,2.5278]
[1735056195102,6.2873,198.03,197.99,2.5277]
[1735056195396,16.80716985,198.12,198.0,12.23346985]
[1735056195599,3.76,198.11,198.06,2.5268]
[1735056195808,3.76,198.12,198.06,12.23346985]
[1735056196197,3.76,198.12,198.09,2.5264]
[1735056196391,6.2858,198.14,198.09,2.5264]
[1735056196797,6.2858,198.14,198.06,12.23346985]
[1735056197100,2.526,198.13,198.08,2.5266]
[1735056197303,3.76,198.14,198.07,12.23346985]
[1735056197605,2.5261,198.12,198.07,12.23346985]
[1735056197903,3.76,198.14,198.07,12.23346985]
[1735056198105,2.5261,198.12,198.07,12.23346985]
[1735056198600,12.23346985,198.11,197.96,12.23346985]
[1735056198805,2.5276,198.0,197.96,12.23346985]
[1735056199699,3.76,198.01,197.85,54.08374306]
[1735056199898,3.76,198.01,197.89,12.23346985]
[1735056200103,1.5844,198.0,197.89,12.23346985]
[1735056200303,2.528,197.97,197.91,2.5287]
[1735056200504,6.288,197.97,197.91,2.5287]
[1735056201605,6.288,197.97,197.9,2.5289]
[1735056201806,6.288,197.97,197.89,12.23346985]
[1735056202205,3.76,197.97,197.84,7.2678]
[1735056202505,3.76,197.97,197.85,12.23346985]
[1735056202805,12.23346985,197.96,197.81,12.23346985]
[1735056203312,2.5287,197.92,197.81,12.23346985]
[1735056203502,12.23346985,197.96,197.81,12.23346985]
[1735056203503,8.4409,197.91,197.81,12.23346985]
[1735056203805,2.5287,197.92,197.84,14.76306985]
[1735056204003,2.5287,197.92,197.8,1.6234]
[1735056204004,3.76,197.92,197.87,12.23346985]
[1735056204402,3.76,197.92,197.9,12.23346985]
[1735056205004,3.78,197.96,197.9,12.23346985]
[1735056205706,3.78,197.96,197.91,2.5287]
[1735056206709,3.78,197.96,197.93,2.5285]
[1735056207409,3.1604,198.04,197.93,14.76196985]
[1735056207609,3.76,198.03,197.96,12.23346985]
[1735056208110,3.76,198.03,197.95,12.23346985]
[1735056208406,3.76,198.03,197.93,19.60903032]
[1735056208613,2.5277,198.0,197.93,22.13743032]
[1735056209301,2.5277,197.99,197.93,22.13743032]
[1735056209609,2.5277,197.99,197.94,2.5284]
[1735056210009,3.76,198.03,197.93,19.60903032]
[1735056211408,2.5276,198.0,197.93,22.13753032]
[1735056212001,2.5276,198.0,197.94,2.5283]
[1735056212214,2.5278,197.99,197.94,2.5283]
[1735056212704,2.5271,198.05,197.97,19.60903032]
[1735056212904,3.76,198.05,197.97,19.60903032]
[1735056213108,19.60903032,198.15,197.97,19.60903032]
[1735056213109,40.50914641,198.2,197.97,19.60903032]
[1735056213310,6.2866,198.08,198.01,19.60903032]
[1735056213504,3.76,198.08,198.01,19.60903032]
[1735056213704,3.76,198.08,197.91,1.6356]
[1735056213905,3.76,198.08,197.94,19.60903032]
[1735056214306,6.2867,198.08,198.01,2.5275]
[1735056214610,3.76,198.08,198.01,2.5275]
[1735056215208,3.76,198.11,198.02,19.60903032]
[1735056215604,6.2863,198.11,198.05,2.5269]
[1735056215810,6.2863,198.11,198.02,19.60903032]
[1735056215811,3.76,198.11,198.02,19.60903032]
[1735056217915,2.5269,198.06,198.02,19.60903032]
[1735056218115,2.5269,198.06,198.0,2.5276]
[1735056218514,2.5271,198.05,197.98,22.13673032]
[1735056218712,3.76,198.05,197.98,22.13673032]
[1735056220415,2.5272,198.04,197.99,2.5277]
[1735056220808,3.76,198.05,198.0,2.5276]
[1735056221718,3.76,198.05,197.98,19.60903032]
[1735056221917,3.76,198.05,197.95,3.1388]
[1735056222217,2.5278,197.99,197.94,2.5283]
[1735056222418,3.76,197.99,197.91,1.6356]
[1735056222809,3.76,197.99,197.94,2.5283]
[1735056223618,3.76,197.99,197.92,2.5286]
[1735056224313,3.76,197.99,197.91,1.6356]
[1735056224512,6.2877,197.99,197.93,2.5284]
[1735056224818,3.76,198.06,197.95,19.60903032]
[1735056225013,3.76,198.06,197.96,1.5214]
[1735056225410,2.527,198.05,198.0,2.5276]
[1735056225819,3.76,198.06,197.96,1.5214]
[1735056226921,2.5273,198.03,197.97,2.5279]
[1735056227109,2.5273,198.03,197.96,1.5214]
[1735056227314,3.76,198.06,197.96,1.5214]
[1735056227514,2.5277,197.99,197.94,2.5283]
[1735056228015,3.76,198.02,197.94,2.5283]
[1735056228211,2.5279,197.98,197.94,2.5283]
[1735056228614,3.76,198.02,197.91,5.8062]
[1735056228812,2.5281,197.96,197.91,5.8062]
[1735056229925,3.76,198.02,197.91,3.2776]
[1735056230126,2.5277,197.99,197.94,2.5283]
[1735056230620,2.5275,198.01,197.96,2.5281]
[1735056231722,3.76,198.02,197.94,2.5283]
[1735056231923,3.76,198.02,197.92,19.60903032]
[1735056232127,2.5281,197.97,197.92,22.13753032]
[1735056234427,3.76,198.02,197.92,19.60903032]
[1735056234630,2.5279,197.98,197.94,2.5284]
[1735056235022,3.76,198.02,197.92,19.60903032]
[1735056236028,2.5277,197.99,197.93,2.5285]
[1735056236227,3.76,198.02,197.93,2.5285]
[1735056236629,16.02041789,198.02,197.88,12.26041789]
[1735056236820,12.26041789,197.99,197.85,12.26041789]
[1735056237219,12.26041789,197.96,197.84,56.61334306]
[1735056237425,8.4817,197.95,197.84,54.08374306]
[1735056237729,2.5287,197.92,197.83,7.2979]
[1735056237927,12.26041789,197.93,197.79,54.08374306]
[1735056238228,12.26041789,197.93,197.79,66.34416095]
[1735056238826,12.26041789,197.93,197.79,12.26041789]
[1735056239424,8.4817,197.95,197.82,12.26041789]
[1735056239726,8.4817,197.95,197.77,4.8702]
[1735056240028,2.5291,197.89,197.82,2.5299]
[1735056240232,3.76,197.88,197.82,2.5299]
[1735056240831,2.5293,197.87,197.82,2.5299]
[1735056242024,3.76,197.88,197.79,19.63580094]
[1735056242526,3.76,197.88,197.77,4.8702]
[1735056242730,2.5301,197.81,197.76,2.5307]
[1735056243031,6.2901,197.81,197.76,2.5307]
[1735056243234,2.5303,197.79,197.74,2.5309]
[1735056243528,3.76,197.81,197.69,54.08374306]
[1735056243721,3.76,197.81,197.69,56.61524306]
[1735056243722,2.5308,197.75,197.69,56.61524306]
[1735056243926,3.76,197.75,197.69,54.08374306]
[1735056244126,3.76,197.75,197.67,4.6654]
[1735056244722,3.76,197.75,197.65,56.61574306]
[1735056244926,3.76,197.75,197.65,54.08374306]
[1735056245126,3.76,197.75,197.61,4.6654]
[1735056245332,4.5836,197.74,197.61,4.6654]
[1735056245831,2.5316,197.69,197.62,2.5323]
[1735056246030,3.76,197.68,197.61,4.6654]
[1735056246530,6.2918,197.68,197.61,7.198]
[1735056247034,3.76,197.68,197.61,4.6654]
[1735056247227,3.76,197.68,197.57,19.63580094]
[1735056248227,2.532,197.66,197.59,2.5328]
[1735056248733,2.5321,197.65,197.57,2.533]
[1735056248923,2.5321,197.65,197.56,19.63580094]
[1735056249127,3.76,197.68,197.56,19.63580094]
[1735056249826,3.76,197.68,197.51,4.6311]
[1735056250136,3.76,197.68,197.52,19.63580094]
[1735056250329,2.5323,197.64,197.53,2.5336]
[1735056250634,3.76,197.68,197.52,19.63580094]
[1735056251533,2.533,197.58,197.52,19.63580094]
[1735056251732,3.76,197.58,197.52,19.63580094]
[1735056251935,3.76,197.58,197.51,4.6311]
[1735056252433,3.76,197.58,197.53,2.5336]
[1735056253538,6.293,197.58,197.51,7.1649]
[1735056253940,3.76,197.58,197.51,4.6311]
[1735056254240,3.76,197.58,197.47,19.63580094]
[1735056254532,19.63580094,197.69,197.47,19.63580094]
[1735056254739,3.76,197.68,197.52,2.5337]
[1735056255539,19.63580094,197.69,197.51,2.5339]
[1735056255738,3.76,197.68,197.51,2.5339]
[1735056256644,3.76,197.68,197.49,2.534]
[1735056256837,19.63580094,197.61,197.44,1.4926]
[1735056257034,8.4805,197.6,197.44,1.4926]
[1735056257343,8.4805,197.6,197.44,4.0272]
[1735056257534,4.7205,197.6,197.45,19.63580094]
[1735056257736,3.76,197.59,197.45,19.63580094]
[1735056257937,3.76,197.59,197.5,2.5339]
[1735056258137,3.76,197.59,197.45,19.63580094]
[1735056258839,3.76,197.59,197.48,2.5341]
[1735056259040,3.76,197.59,197.45,19.63580094]
[1735056259240,3.76,197.59,197.44,1.4926]
[1735056259441,2.5334,197.55,197.44,4.0273]
[1735056259733,19.63580094,197.57,197.41,19.63580094]
[1735056260134,2.5344,197.47,197.41,19.63580094]
[1735056260341,3.76,197.47,197.37,75.25423397]
[1735056260540,3.76,197.47,197.37,21.28080094]
[1735056261447,2.5348,197.44,197.38,2.5355]
[1735056262444,2.5352,197.41,197.34,2.5359]
[1735056262740,6.2952,197.41,197.34,2.5359]
[1735056264537,3.76,197.41,197.36,2.5357]
[1735056265044,1.5618,197.52,197.36,19.63580094]
[1735056265241,1.5618,197.52,197.4,19.63580094]
[1735056265242,3.76,197.51,197.4,19.63580094]
[1735056265942,3.002,197.55,197.41,4.724]
[1735056266241,3.76,197.54,197.44,19.63580094]
[1735056266644,6.2936,197.54,197.47,2.5343]
[1735056266845,6.2936,197.54,197.44,19.63580094]
[1735056266846,3.76,197.54,197.44,19.63580094]
[1735056267035,3.76,197.54,197.45,0.93121307]
[1735056267446,3.76,197.54,197.48,19.63580094]
[1735056267942,2.5334,197.55,197.5,2.534]
[1735056268142,3.76,197.57,197.48,19.63580094]
[1735056268841,2.5333,197.56,197.41,8.484]
[1735056269043,2.5333,197.56,197.46,19.63580094]
[1735056269240,2.5333,197.56,197.47,0.93110407]
[1735056269439,3.76,197.57,197.47,0.93110407]
[1735056269639,2.5335,197.54,197.48,2.5342]
[1735056270044,2.5339,197.51,197.46,2.5344]
[1735056270238,3.76,197.53,197.41,4.724]
[1735056270545,3.76,197.52,197.42,0.93131453]
[1735056272446,3.76,197.52,197.41,24.35980094]
[1735056273345,2.5341,197.5,197.45,2.5346]
[1735056273552,3.76,197.52,197.41,24.35980094]
[1735056274045,2.5343,197.48,197.42,2.5349]
[1735056276149,2.5344,197.47,197.42,2.5349]
[1735056276651,3.76,197.52,197.41,1.589]
[1735056276841,3.76,197.52,197.38,5.5772]
[1735056277044,2.5351,197.42,197.38,3.0417]
[1735056277248,3.76,197.44,197.33,21.16630094]
[1735056277442,19.63580094,197.5,197.33,21.16630094]
[1735056277443,3.76,197.43,197.33,21.16630094]
[1735056277651,3.76,197.43,197.34,0.9316383]
[1735056277953,3.76,197.43,197.33,1.5305]
[1735056278154,2.5354,197.4,197.34,2.536]
[1735056278746,3.76,197.43,197.33,1.5305]
[1735056278948,2.5351,197.42,197.35,2.5358]
[1735056279148,3.76,197.49,197.36,0.93171859]
[1735056279343,3.76,197.49,197.34,19.63580094]
[1735056279549,2.5349,197.44,197.37,2.5357]
[1735056279748,2.5349,197.44,197.34,19.63580094]
[1735056279944,3.76,197.49,197.35,0.93156271]
[1735056280150,2.5345,197.47,197.41,2.5351]
[1735056280446,3.76,197.49,197.33,1.5305]
[1735056280647,3.76,197.49,197.35,19.63580094]
[1735056280847,3.76,197.49,197.36,0.93156103]
[1735056281546,2.5347,197.45,197.39,2.5354]
[1735056284154,2.535,197.43,197.36,56.61944306]
[1735056284355,3.76,197.45,197.36,56.61944306]
[1735056284750,3.76,197.45,197.36,54.08374306]
[1735056284949,3.76,197.45,197.35,73.719544]
[1735056285146,3.76,197.45,197.36,0.93159448]
[1735056285350,2.5351,197.42,197.36,2.5357]
[1735056285547,3.76,197.45,197.35,73.719544]
[1735056285953,2.5352,197.41,197.36,2.5358]
[1735056286152,3.76,197.45,197.35,86.30128735]
[1735056286456,3.76,197.45,197.36,0.9315832]
[1735056286657,3.76,197.45,197.38,2.5355]
[1735056286853,3.76,197.45,197.35,73.719544]
[1735056287156,3.76,197.45,197.36,3.4672865]
[1735056287355,3.76,197.45,197.36,2.5357]
[1735056287756,2.5352,197.41,197.36,56.61944306]
[1735056288356,2.5352,197.41,197.37,2.5357]
[1735056288854,3.76,197.45,197.36,54.08374306]
[1735056288855,2.535,197.43,197.36,54.08374306]
[1735056289059,2.535,197.43,197.35,78.9937281]
[1735056289355,3.76,197.45,197.35,66.66548641]
[1735056289755,2.5354,197.4,197.35,69.20138641]
[1735056290051,3.76,197.45,197.37,54.08374306]
[1735056290451,2.5355,197.39,197.37,54.08374306]
[1735056290652,3.76,197.45,197.37,54.08374306]
[1735056291155,2.5356,197.38,197.33,83.0604281]
[1735056291655,2.5358,197.36,197.33,80.5242281]
[1735056292454,2.5358,197.36,197.31,69.20188641]
[1735056292647,3.76,197.39,197.31,66.66548641]
[1735056293254,2.5363,197.32,197.31,66.66548641]
[1735056293558,6.2963,197.32,197.31,66.66548641]
[1735056294054,3.76,197.32,197.31,66.66548641]
[1735056294357,3.76,197.32,197.27,66.66548641]
[1735056294757,2.5366,197.31,197.27,66.66548641]
[1735056295051,3.76,197.32,197.27,66.66548641]
[1735056295258,6.2963,197.32,197.27,66.66548641]
[1735056295753,3.76,197.32,197.23,12.32824169]
[1735056295955,2.5365,197.31,197.25,2.5371]
[1735056296157,3.76,197.32,197.22,54.08374306]
[1735056296358,2.5366,197.3,197.24,2.5373]
[1735056296656,3.76,197.32,197.24,2.5373]
[1735056297157,2.5367,197.29,197.23,2.5375]
[1735056297553,3.76,197.32,197.23,2.5375]
[1735056297755,3.76,197.32,197.24,2.5373]
[1735056297956,3.76,197.32,197.22,12.32824169]
[1735056298155,6.2963,197.32,197.22,12.32824169]
[1735056298359,3.76,197.32,197.27,2.5369]
[1735056298959,3.76,197.32,197.22,12.32824169]
[1735056299362,2.5367,197.29,197.22,12.32824169]
[1735056299563,3.76,197.32,197.24,2.5372]
[1735056300062,2.5366,197.31,197.24,2.5372]
[1735056300454,3.76,197.32,197.24,2.5372]
[1735056300652,6.2963,197.33,197.25,12.32824169]
[1735056300862,3.76,197.33,197.25,12.32824169]
[1735056301371,3.76,197.33,197.28,2.5368]
[1735056302469,6.2962,197.33,197.28,2.5368]
[1735056304771,2.5362,197.33,197.28,2.5368]
[1735056306771,2.5362,197.33,197.27,2.5369]
[1735056307671,3.76,197.34,197.27,2.5369]
[1735056307872,2.5363,197.32,197.27,2.5369]
[1735056309074,3.76,197.34,197.26,1.5713]
[1735056309075,2.5366,197.3,197.26,1.5713]
[1735056309975,4.6241,197.38,197.28,12.32824169]
[1735056310172,3.76,197.38,197.28,12.32824169]
[1735056310670,12.32824169,197.42,197.28,12.32824169]
[1735056310876,2.5357,197.38,197.31,2.5364]
[1735056311070,3.76,197.41,197.31,2.5364]
[1735056311672,2.5359,197.36,197.31,2.5364]
[1735056313578,3.76,197.41,197.27,3.2277]
[1735056313781,12.32824169,197.39,197.27,3.2277]
[1735056314469,12.32824169,197.39,197.26,1.5713]
[1735056314677,12.32824169,197.39,197.23,12.32824169]
[1735056315480,2.5365,197.31,197.23,12.32824169]
[1735056315875,3.76,197.33,197.17,54.08374306]
[1735056316078,2.5372,197.26,197.18,12.32824169]
[1735056316273,2.5372,197.26,197.21,12.32824169]
[1735056316474,2.5369,197.28,197.21,14.86584169]
[1735056316676,3.76,197.3,197.24,12.32824169]
[1735056317485,6.2967,197.3,197.24,14.86554169]
[1735056317879,6.2967,197.3,197.24,2.5373]
[1735056319984,2.537,197.27,197.22,14.86574169]
[1735056321290,2.537,197.27,197.22,2.5375]
[1735056321585,2.537,197.27,197.23,2.5375]
[1735056323093,3.76,197.3,197.17,4.7376]
[1735056323282,3.76,197.3,197.21,12.32824169]
[1735056323482,2.537,197.27,197.21,14.86584169]
[1735056323792,3.76,197.3,197.21,12.32824169]
[1735056324981,2.5369,197.28,197.22,2.5376]
[1735056325187,3.76,197.3,197.21,12.32824169]
[1735056325784,4.7847,197.34,197.21,12.32824169]
[1735056325989,3.76,197.33,197.24,12.32824169]
[1735056326188,2.5367,197.3,197.24,14.86544169]
[1735056326387,3.76,197.33,197.24,12.32824169]
[1735056326788,2.5368,197.29,197.24,12.32824169]
[1735056327089,3.76,197.33,197.2,12.32824169]
[1735056327390,2.5371,197.27,197.2,14.86604169]
[1735056328083,2.5371,197.26,197.2,12.32824169]
[1735056328290,3.76,197.27,197.18,16.88514169]
[1735056328488,3.76,197.26,197.18,19.42324169]
[1735056328688,2.5375,197.24,197.18,7.095]
[1735056328990,3.76,197.25,197.18,16.88514169]